lending/lending_fUSD_20240124
["ID","MTS","AMOUNT","RATE_DAILY","PERIOD"]
[312645925,1706128239751,-16421.42944879,0.00026368,2]
[312645928,1706128239762,-430.37,0.00026424,2]
[312645930,1706128239772,-158.67930109,0.000265,2]
[312645932,1706128239783,-380.09202361,0.000265,2]
[312645934,1706128239793,-546.72,0.00026552,2]
[312645936,1706128239803,-4386.91,0.00026575,2]
[312645938,1706128239814,-1296.30639016,0.00026728,3]
[312645941,1706128239824,-2185.04,0.00026793,2]
[312645943,1706128239835,-3356.0,0.00027,2]
[312645945,1706128239845,-9431.0,0.00027,2]
[312645947,1706128239855,-500.0,0.00027,3]
[312645949,1706128239866,-180.0,0.00027026,2]
[312645951,1706128239875,-1973.77243388,0.00027197,2]
[312645954,1706128239886,-206.0,0.00027222,2]
[312645956,1706128239896,-153.84429428,0.00027297,2]
[312645958,1706128239906,-800.0,0.0002737,2]
[312645960,1706128239916,-3000.0,0.00027397,2]
[312645962,1706128239926,-3000.0,0.00027397,2]
[312645964,1706128239936,-3000.0,0.00027397,2]
[312645966,1706128239946,-3000.0,0.00027397,2]
[312645968,1706128239956,-3000.0,0.00027397,2]
[312645971,1706128239967,-3078.54113967,0.00027397,2]
[312645972,1706128239977,-155.0,0.00027397,2]
[312645973,1706128239987,-229.97,0.00027397,2]
[312645974,1706128239997,-158.89,0.00027397,2]
[312645975,1706128240008,-162.77,0.00027397,2]
[312645976,1706128240018,-374.95,0.00027397,2]
[312645977,1706128240028,-264.44,0.000274,2]
[312645978,1706128240038,-264.44,0.000274,2]
[312645979,1706128240049,-264.44,0.000274,2]
[312645981,1706128240059,-264.44,0.000274,2]
[312645983,1706128240070,-264.44,0.000274,2]
[312646061,1706128240735,-162.77,0.00027682,2]
[312646064,1706128240758,-229.97,0.00027686,2]
[312646068,1706128240777,-352.39,0.000277,2]
[312646072,1706128240805,-500.0,0.00027726,2]
[312646074,1706128240823,-163.06984124,0.00027831,2]
[312646076,1706128240832,-500.0,0.00027842,2]
[312646078,1706128240841,-158.89,0.00027895,2]
[312646080,1706128240850,-162.77,0.00027967,2]
[312646082,1706128240859,-229.97,0.00027974,2]
[312646084,1706128240868,-500.0,0.00028158,2]
[312646086,1706128240877,-892.0,0.00028181,2]
[312646088,1706128240886,-546.72,0.00028196,2]
[312646090,1706128240895,-416.32,0.00028203,2]
[312646092,1706128240904,-538.62,0.00028203,2]
[312646094,1706128240913,-162.77,0.00028252,2]
[312646096,1706128240922,-229.97,0.00028262,2]
[312646098,1706128240931,-158.89,0.00028394,2]
[312646100,1706128240940,-162.77,0.00028537,2]
[312646102,1706128240948,-229.97,0.00028551,2]
[312646104,1706128240958,-430.37,0.00028688,2]
[312646106,1706128240967,-300.0,0.0002869,2]
[312646108,1706128240976,-1500.0,0.00028694,2]
[312646110,1706128240985,-285.0,0.000287,5]
[312646112,1706128240995,-150.0,0.0002872,2]
[312646114,1706128241003,-150.0,0.00028727,2]
[312646116,1706128241012,-150.0,0.00028727,2]
[312646118,1706128241022,-150.0,0.00028728,2]
[312646120,1706128241031,-1500.0,0.00028736,2]
[312646122,1706128241041,-150.0,0.00028738,2]
[312646124,1706128241050,-150.0,0.00028739,2]
[312646126,1706128241059,-150.0,0.00028739,2]
[312646128,1706128241069,-150.0,0.00028739,2]
[312646130,1706128241078,-150.0,0.0002874,2]
[312646132,1706128241087,-150.0,0.00028742,2]
[312646133,1706128241096,-1500.0,0.00028745,2]
[312646135,1706128241105,-1500.0,0.00028749,2]
[312646136,1706128241114,-150.0,0.00028753,2]
[312646137,1706128241123,-150.0,0.00028754,2]
[312646138,1706128241132,-150.0,0.00028754,2]
[312646139,1706128241144,-150.0,0.00028755,2]
[312646140,1706128241152,-1500.0,0.00028758,2]
[312646141,1706128241162,-150.0,0.00028763,2]
[312646142,1706128241172,-300.0,0.00028766,2]
[312646143,1706128241183,-150.0,0.00028766,2]
[312646144,1706128241193,-150.0,0.00028767,2]
[312646145,1706128241202,-155.0,0.00028767,2]
[312646146,1706128241211,-150.0,0.00028771,2]
[312646147,1706128241222,-150.0,0.00028774,2]
[312646148,1706128241232,-150.0,0.00028776,2]
[312646149,1706128241241,-150.0,0.00028783,2]
[312646150,1706128241250,-150.0,0.00028783,2]
[312646151,1706128241259,-150.0,0.00028785,2]
[312646152,1706128241269,-150.0,0.00028787,2]
[312646153,1706128241278,-1500.0,0.00028794,2]
[312646154,1706128241287,-300.0,0.00028794,2]
[312646155,1706128241296,-150.0,0.00028794,2]
[312646156,1706128241305,-150.0,0.00028799,2]
[312646157,1706128241315,-150.0,0.000288,2]
[312646158,1706128241324,-300.0,0.000288,2]
[312646159,1706128241334,-150.0,0.00028805,2]
[312646160,1706128241343,-150.0,0.00028806,2]
[312646161,1706128241352,-150.0,0.00028808,2]
[312646162,1706128241362,-300.0,0.00028809,2]
[312646163,1706128241371,-150.0,0.00028815,2]
[312646164,1706128241380,-150.0,0.00028817,2]
[312646165,1706128241389,-150.0,0.00028818,2]
[312646166,1706128241398,-150.0,0.00028818,2]
[312646167,1706128241407,-150.0,0.00028821,2]
[312646168,1706128241416,-150.0,0.00028821,2]
[312646169,1706128241426,-162.77,0.00028822,2]
[312646170,1706128241435,-1500.0,0.00028823,2]
[312646171,1706128241444,-150.0,0.00028824,2]
[312646172,1706128241453,-150.0,0.00028828,2]
[312646173,1706128241462,-150.0,0.0002883,2]
[312646174,1706128241471,-150.0,0.00028833,2]
[312646175,1706128241480,-150.0,0.00028833,2]
[312646176,1706128241489,-229.97,0.00028839,2]
[312646177,1706128241499,-150.0,0.00028841,2]
[312646178,1706128241508,-150.0,0.00028843,2]
[312646179,1706128241517,-150.0,0.00028844,2]
[312646180,1706128241527,-500.0,0.00028845,2]
[312646181,1706128241536,-500.0,0.00028845,2]
[312646182,1706128241545,-500.0,0.00028845,2]
[312646183,1706128241555,-500.0,0.00028845,2]
[312646184,1706128241565,-500.0,0.00028845,2]
[312646185,1706128241574,-273.2729,0.00028845,2]
[312646186,1706128241584,-1000.0,0.00028845,2]
[312646187,1706128241593,-1000.0,0.00028845,2]
[312646188,1706128241602,-1000.0,0.00028845,2]
[312646189,1706128241612,-1000.0,0.00028845,2]
[312646190,1706128241621,-1000.0,0.00028845,2]
[312646191,1706128241631,-1000.0,0.00028845,2]
[312646192,1706128241640,-1000.0,0.00028845,2]
[312646193,1706128241650,-1000.0,0.00028845,2]
[312646194,1706128241659,-1000.0,0.00028845,2]
[312646196,1706128241669,-1000.0,0.00028845,2]
[312646197,1706128241678,-1000.0,0.00028845,2]
[312646198,1706128241688,-1000.0,0.00028845,2]
[312646199,1706128241697,-1000.0,0.00028845,2]
[312646200,1706128241706,-1000.0,0.00028845,2]
[312646201,1706128241715,-1000.0,0.00028845,2]
[312646202,1706128241724,-1000.0,0.00028845,2]
[312646203,1706128241733,-1000.0,0.00028845,2]
[312646204,1706128241742,-1000.0,0.00028845,2]
[312646205,1706128241751,-1000.0,0.00028845,2]
[312646206,1706128241760,-1000.0,0.00028845,2]
[312646207,1706128241768,-1000.0,0.00028845,2]
[312646208,1706128241777,-1000.0,0.00028845,2]
[312646209,1706128241786,-1000.0,0.00028845,2]
[312646211,1706128241795,-1000.0,0.00028845,2]
[312646214,1706128241803,-1000.0,0.00028845,2]
[312646217,1706128241813,-1000.0,0.00028845,2]
[312646218,1706128241822,-1000.0,0.00028845,2]
[312646221,1706128241832,-1000.0,0.00028845,2]
[312646222,1706128241841,-1000.0,0.00028845,2]
[312646223,1706128241850,-1000.0,0.00028845,2]
[312646224,1706128241859,-1000.0,0.00028845,2]
[312646225,1706128241868,-1000.0,0.00028845,2]
[312646226,1706128241878,-1000.0,0.00028845,2]
[312646227,1706128241887,-1000.0,0.00028845,2]
[312646228,1706128241896,-1000.0,0.00028845,2]
[312646229,1706128241904,-1000.0,0.00028845,2]
[312646230,1706128241914,-1000.0,0.00028845,2]
[312646231,1706128241923,-1000.0,0.00028845,2]
[312646232,1706128241932,-462.8611,0.00028845,2]
[312646233,1706128241941,-500.0,0.00028845,2]
[312646234,1706128241949,-150.0,0.00028847,2]
[312646235,1706128241958,-150.0,0.00028851,2]
[312646236,1706128241967,-150.0,0.00028856,2]
[312646237,1706128241976,-150.0,0.00028856,2]
[312646238,1706128241985,-150.0,0.0002886,2]
[312646239,1706128241994,-150.0,0.00028866,2]
[312646240,1706128242003,-150.0,0.00028868,2]
[312646241,1706128242012,-150.0,0.00028875,2]
[312646242,1706128242022,-150.0,0.00028875,2]
[312646243,1706128242032,-150.0,0.00028878,2]
[312646244,1706128242041,-150.0,0.00028878,2]
[312646245,1706128242050,-150.0,0.00028882,2]
[312646246,1706128242060,-150.0,0.00028886,2]
[312646247,1706128242069,-150.0,0.00028886,2]
[312646248,1706128242077,-300.0,0.00028887,2]
[312646249,1706128242087,-150.0,0.00028888,2]
[312646250,1706128242096,-1500.0,0.00028889,2]
[312646251,1706128242106,-150.0,0.00028891,2]
[312646252,1706128242115,-158.89,0.00028892,2]
[312646253,1706128242125,-2000.0,0.00028898,3]
[312646254,1706128242136,-5000.0,0.00028898,2]
[312646255,1706128242146,-169.31838675,0.000289,2]
[312646256,1706128242155,-1500.0,0.000289,2]
[312646257,1706128242164,-1500.0,0.00028902,2]
[312646258,1706128242174,-150.0,0.00028909,2]
[312646259,1706128242183,-150.0,0.00028912,2]
[312646260,1706128242193,-1500.0,0.00028917,2]
[312646261,1706128242202,-150.0,0.00028917,2]
[312646262,1706128242211,-300.0,0.00028917,2]
[312646263,1706128242222,-150.0,0.00028921,2]
[312646264,1706128242231,-150.0,0.00028925,2]
[312646265,1706128242241,-1500.0,0.00028926,2]
[312646266,1706128242250,-500.0,0.0002893,2]
[312646267,1706128242259,-150.0,0.00028933,2]
[312646268,1706128242268,-150.0,0.00028937,2]
[312646269,1706128242278,-150.0,0.00028938,2]
[312646270,1706128242287,-150.0,0.0002894,2]
[312646271,1706128242297,-1500.0,0.00028942,2]
[312646272,1706128242307,-150.0,0.00028943,2]
[312646273,1706128242318,-150.0,0.00028943,2]
[312646274,1706128242327,-150.0,0.00028943,2]
[312646275,1706128242336,-150.0,0.00028945,2]
[312646276,1706128242346,-300.0,0.00028946,2]
[312646277,1706128242355,-257.70962994,0.00028949,2]
[312646278,1706128242364,-150.0,0.00028957,2]
[312646279,1706128242373,-150.0,0.00028958,2]
[312646280,1706128242382,-150.0,0.00028961,2]
[312646281,1706128242392,-150.0,0.00028962,2]
[312646282,1706128242401,-150.0,0.00028962,2]
[312646283,1706128242410,-300.0,0.00028964,2]
[312646284,1706128242419,-150.0,0.00028969,2]
[312646285,1706128242428,-150.0,0.00028974,2]
[312646286,1706128242437,-150.0,0.0002898,2]
[312646287,1706128242446,-150.0,0.00028986,2]
[312646288,1706128242455,-150.0,0.00028987,2]
[312646289,1706128242464,-264.44,0.00028988,2]
[312646290,1706128242474,-300.02,0.00028989,2]
[312646291,1706128242483,-2742.1111058,0.00028989,2]
[312646292,1706128242492,-150.0,0.00028989,2]
[312646293,1706128242501,-150.0,0.00028995,2]
[312646294,1706128242510,-150.0,0.00028997,2]
[312646295,1706128242520,-310.42145107,0.00028998,2]
[312646296,1706128242529,-286.78293325,0.00028998,2]
[312646297,1706128242538,-158.86466524,0.00028998,2]
[312646298,1706128242547,-516.75299771,0.00028998,2]
[312646299,1706128242556,-2579.08840316,0.00028998,2]
[312646300,1706128242566,-167.29398708,0.00028998,2]
[312646301,1706128242575,-164.39591223,0.00028998,2]
[312646302,1706128242584,-201.91711079,0.00028998,2]
[312646303,1706128242593,-329.46360402,0.00028998,2]
[312646304,1706128242602,-1050.80754485,0.00028998,2]
[312646305,1706128242611,-1709.96186533,0.00028998,2]
[312646306,1706128242621,-10517.1226327,0.00028998,2]
[312646307,1706128242630,-57318.8005674,0.00028998,2]
[312646308,1706128242639,-5458.5528807,0.00028998,2]
[312646309,1706128242649,-201.04643609,0.00028999,2]
[312646310,1706128242658,-158.56574006,0.00028999,2]
[312646311,1706128242667,-473.62844747,0.00028999,2]
[312646312,1706128242677,-400.40072411,0.00028999,2]
[312646313,1706128242687,-89371.49710889,0.00029,15]
[312646314,1706128242697,-509.50015364,0.00029,2]
[312646315,1706128242706,-200.0,0.00029,2]
[312646316,1706128242715,-250.0,0.00029,2]
[312646317,1706128242724,-150.0,0.00029,2]
[312646318,1706128242734,-257.27,0.00029,7]
[312646319,1706128242743,-500.0,0.00029,2]
[312646320,1706128242752,-550.0,0.00029,3]
[312646321,1706128242761,-264.44,0.00029008,2]
[312646322,1706128242770,-117800.374051,0.00029018,2]
[312646323,1706128242779,-689.05942203,0.00029098,2]
[312646324,1706128242788,-395.57,0.00029128,2]
[312646325,1706128242797,-229.97,0.00029128,2]
[312646326,1706128242806,-257.27,0.00029137,7]
[312646327,1706128242815,-1973.77243385,0.00029243,2]
[312646328,1706128242825,-250.0,0.00029274,2]
[312646329,1706128242834,-513.6,0.00029274,7]
[312646330,1706128242843,-155.66,0.0002939,2]
[312646331,1706128242853,-158.89,0.0002939,2]
[312646332,1706128242862,-395.57,0.00029416,2]
[312646333,1706128242871,-229.97,0.00029416,2]
[312646334,1706128242880,-155.0,0.000295,3]
[312646335,1706128242889,-150.0,0.00029548,2]
[312646336,1706128242898,-395.57,0.00029704,2]
[312646337,1706128242907,-229.97,0.00029704,2]
[312646338,1706128242917,-153.84429425,0.00029732,2]
[312646339,1706128242926,-546.72,0.0002984,2]
[312646340,1706128242935,-155.66,0.00029888,2]
[312646341,1706128242944,-158.89,0.00029888,2]
[312646342,1706128242953,-163.06984124,0.000299,2]
[312646343,1706128242963,-1000.0,0.000299,2]
[312646344,1706128242972,-535.19472876,0.000299,2]
[312646345,1706128242981,-337.02984664,0.000299,2]
[312646346,1706128242990,-338.78319538,0.000299,2]
[312646347,1706128242999,-7750.11599354,0.000299,2]
[312646348,1706128243008,-5201.5664843,0.00029979,2]
[312646349,1706128243018,-289.2366302,0.0002999,2]
[312646350,1706128243027,-264.44,0.0002999,2]
[312646351,1706128243036,-264.44,0.0002999,2]
[312646352,1706128243045,-264.44,0.0002999,2]
[312646353,1706128243055,-395.57,0.00029993,2]
[312646354,1706128243064,-229.97,0.00029993,2]
[312646355,1706128243074,-38067.41507136,0.00029997,2]
[312646356,1706128243083,-272.92829241,0.00029998,2]
[312646357,1706128243092,-370.93681553,0.00029998,2]
[312646358,1706128243101,-343.24758046,0.00029998,2]
[312646359,1706128243110,-1178.76061238,0.00029998,2]
[312646361,1706128243120,-201.6528321,0.00029998,2]
[312646363,1706128243130,-549.18384813,0.00029998,2]
[312646365,1706128243145,-155.0,0.00029998,2]
[312646367,1706128243154,-417.60996336,0.00029998,2]
[312646369,1706128243164,-2088.88170742,0.00029998,2]
[312646371,1706128243173,-500.0,0.00029999,2]
[312646373,1706128243183,-420.59010105,0.00029999,2]
[312646375,1706128243192,-173.5497633,0.00029999,2]
[312646376,1706128243201,-463.11594283,0.00029999,2]
[312646378,1706128243211,-12919.32415882,0.0003,4]
[312646380,1706128243220,-65760.19678851,0.0003,4]
[312646383,1706128243229,-155.0,0.0003,2]
[312646386,1706128243238,-192.24957213,0.0003,2]
[312646389,1706128243248,-5623.05876082,0.0003,2]
[312646392,1706128243257,-693.19279823,0.0003,2]
[312646395,1706128243266,-582.7666979,0.0003,2]
[312646397,1706128243275,-9641.46795832,0.0003,2]
[312646399,1706128243285,-5734.37864632,0.0003,4]
[312646401,1706128243294,-8843.95043296,0.0003,4]
[312646403,1706128243303,-445.98483451,0.0003,4]
[312646405,1706128243313,-19017.19619234,0.0003,4]
[312646408,1706128243323,-72955.54889028,0.0003,4]
[312646410,1706128243332,-526.7970813,0.0003,4]
[312646412,1706128243342,-1576.69697089,0.0003,4]
[312646414,1706128243351,-814.57679404,0.0003,4]
[312646416,1706128243361,-358.00273995,0.0003,2]
[312646418,1706128243370,-694834.97170106,0.0003,2]
[312646420,1706128243379,-203.0,0.0003,2]
[312646421,1706128243389,-3000.0,0.0003,2]
[312646422,1706128243398,-3000.0,0.0003,2]
[312646423,1706128243407,-3000.0,0.0003,2]
[312646424,1706128243417,-3000.0,0.0003,2]
[312646425,1706128243426,-3000.0,0.0003,2]
[312646426,1706128243435,-577.397067,0.0003,2]
[312646427,1706128243445,-251.65794723,0.000301,4]
[312646428,1706128243454,-500.0,0.00030105,2]
[312646429,1706128243463,-20000.0,0.00030137,2]
[312646430,1706128243473,-153.84,0.00030137,2]
[312646431,1706128243482,-155.0,0.00030137,2]
[312646432,1706128243492,-389.03,0.00030171,2]
[312646433,1706128243501,-395.57,0.00030281,2]
[312646434,1706128243511,-229.97,0.00030281,2]
[312646435,1706128243521,-155.66,0.00030386,2]
[312646436,1706128243531,-158.89,0.00030386,2]
[312646437,1706128243540,-151.65608987,0.00030501,2]
[312646438,1706128243549,-1296.30639016,0.00030556,5]
[312646439,1706128243558,-395.57,0.00030569,2]
[312646440,1706128243567,-229.97,0.00030569,2]
[312646441,1706128243576,-3000.0,0.0003065,2]
[312646442,1706128243586,-6901.8497,0.00030758,3]
[312646443,1706128243595,-153.84,0.00030782,2]
[312646444,1706128243604,-395.57,0.00030858,2]
[312646445,1706128243614,-229.97,0.00030858,2]
[312646446,1706128243623,-155.66,0.00030884,2]
[312646447,1706128243631,-158.89,0.00030884,2]
[312646448,1706128243641,-430.37,0.00030952,2]
[312646449,1706128243650,-892.0,0.00030999,2]
[312646450,1706128243659,-600.0,0.00031,3]
[312646451,1706128243668,-395.57,0.00031146,2]
[312646452,1706128243677,-229.97,0.00031146,2]
[312646453,1706128243686,-150.0,0.00031216,2]
[312646454,1706128243695,-1145.543,0.00031216,2]
[312646455,1706128243704,-865.0,0.00031216,2]
[312646456,1706128243713,-319.0,0.00031216,2]
[312646457,1706128243722,-209.0,0.00031216,2]
[312646458,1706128243732,-5550.41,0.00031216,2]
[312646459,1706128243741,-19732.0,0.00031216,2]
[312646460,1706128243750,-2909.0,0.00031216,2]
[312646461,1706128243760,-2276.0,0.00031216,2]
[312646462,1706128243769,-4182.0,0.00031216,2]
[312646463,1706128243778,-837.0,0.00031216,2]
[312646464,1706128243787,-947.0,0.00031216,2]
[312646465,1706128243796,-1857.0,0.00031216,2]
[312646466,1706128243805,-1031.0,0.00031216,2]
[312646467,1706128243814,-1233.0,0.00031216,2]
[312646468,1706128243824,-703.0,0.00031216,2]
[312646469,1706128243834,-1251.0,0.00031216,2]
[312646470,1706128243843,-150.0,0.00031287,2]
[312646471,1706128243852,-150.0,0.00031287,2]
[312646472,1706128243861,-1973.77243385,0.00031288,2]
[312646473,1706128243871,-155.66,0.00031382,2]
[312646474,1706128243880,-158.89,0.00031382,2]
[312646475,1706128243889,-153.84,0.00031426,2]
[312646476,1706128243898,-8500.93125187,0.0003143,4]
[312646477,1706128243907,-395.57,0.00031435,2]
[312646478,1706128243917,-229.97,0.00031435,2]
[312646479,1706128243925,-155.0,0.00031507,2]
[312646480,1706128243934,-180.0,0.00031644,2]
[312646481,1706128243944,-263.2,0.00031644,2]
[312646482,1706128243953,-395.57,0.00031723,2]
[312646483,1706128243963,-229.97,0.00031723,2]
[312646484,1706128243972,-155.66,0.0003188,2]
[312646485,1706128243981,-158.89,0.0003188,2]
[312646486,1706128243991,-1003.5535,0.00031899,2]
[312646487,1706128244000,-150.90801734,0.00032,2]
[312646488,1706128244009,-3783.14260718,0.00032,4]
[312646489,1706128244018,-690.0,0.00032,2]
[312646490,1706128244027,-395.57,0.00032011,2]
[312646491,1706128244037,-229.97,0.00032011,2]
[312646492,1706128244046,-153.84,0.00032071,2]
[312646493,1706128244055,-150.0,0.00032116,2]
[312646494,1706128244064,-150.0,0.00032116,2]
[312646495,1706128244074,-153.0,0.00032116,2]
[312646496,1706128244083,-153.0,0.00032116,2]
[312646497,1706128244093,-153.28,0.00032116,2]
[312646498,1706128244102,-150.0,0.00032116,2]
[312646499,1706128244111,-200.0,0.00032116,2]
[312646500,1706128244120,-153.303,0.00032116,2]
[312646501,1706128244130,-223.973,0.00032116,2]
[312646502,1706128244142,-153.84429425,0.00032166,2]
[312646503,1706128244151,-395.57,0.000323,2]
[312646504,1706128244160,-229.97,0.000323,2]
[312646505,1706128244170,-155.66,0.00032379,2]
[312646506,1706128244181,-158.89,0.00032379,2]
[312646507,1706128244190,-180.0,0.00032431,2]
[312646508,1706128244199,-155.49952712,0.000325,2]
[312646509,1706128244208,-395.57,0.00032588,2]
[312646510,1706128244219,-229.97,0.00032588,2]
[312646511,1706128244228,-38067.41507136,0.00032697,2]
[312646512,1706128244238,-13998.29006143,0.000327,2]
[312646513,1706128244247,-13998.29006135,0.000327,2]
[312646514,1706128244256,-13998.29006135,0.000327,2]
[312646515,1706128244265,-13998.29006135,0.000327,2]
[312646516,1706128244274,-13998.29006135,0.000327,2]
[312646517,1706128244284,-13998.29006135,0.000327,2]
[312646518,1706128244293,-13998.29006135,0.000327,2]
[312646519,1706128244303,-13998.29006135,0.000327,2]
[312646520,1706128244313,-13998.29006135,0.000327,2]
[312646521,1706128244323,-13998.29006135,0.000327,2]
[312646522,1706128244332,-13998.29006135,0.000327,2]
[312646523,1706128244341,-13998.29006135,0.000327,2]
[312646524,1706128244351,-13998.29006135,0.000327,2]
[312646525,1706128244360,-13998.29006135,0.000327,2]
[312646526,1706128244369,-13998.29006135,0.000327,2]
[312646527,1706128244378,-13998.29006135,0.000327,2]
[312646528,1706128244387,-13998.29006135,0.000327,2]
[312646529,1706128244397,-1000.0,0.000327,2]
[312646530,1706128244405,-870.0,0.000327,2]
[312646531,1706128244414,-153.84,0.00032716,2]
[312646532,1706128244424,-157.99,0.000328,2]
[312646533,1706128244433,-395.57,0.00032877,2]
[312646534,1706128244442,-229.97,0.00032877,2]
[312646535,1706128244451,-156.73,0.00032877,15]
[312646536,1706128244460,-155.66,0.00032877,2]
[312646537,1706128244470,-158.89,0.00032877,2]
[312646538,1706128244479,-155.0,0.00032877,2]
[312646539,1706128244489,-13998.29006135,0.00032925,2]
[312646540,1706128244498,-12764.55064213,0.00033,2]
[312646541,1706128244507,-203.0,0.00033,2]
[312646542,1706128244516,-650.0,0.00033,3]
[312646543,1706128244525,-430.37,0.00033216,2]
[312646544,1706128244534,-184.0,0.00033323,2]
[312646545,1706128244544,-1973.77243385,0.00033334,5]
[312646546,1706128244554,-153.84,0.0003336,2]
[312646547,1706128244563,-154.67,0.000335,2]
[312646548,1706128244572,-154.67,0.000335,2]
[312646549,1706128244581,-154.67,0.000335,2]
[312646550,1706128244590,-154.67,0.000335,2]
[312646551,1706128244786,-154.67,0.000335,2]
[312646552,1706128244795,-154.67,0.000335,2]
[312646553,1706128244805,-154.67,0.000335,2]
[312646554,1706128244815,-154.67,0.000335,2]
[312646555,1706128244824,-154.67,0.000335,2]
[312646556,1706128244834,-154.67,0.000335,2]
[312646557,1706128244843,-154.67,0.000335,2]
[312646558,1706128244852,-13998.29006135,0.0003352,2]
[312646559,1706128244861,-206.0,0.00033778,13]
[312646560,1706128244871,-892.0,0.00033817,2]
[312646561,1706128244880,-1000.0,0.00034,4]
[312646562,1706128244889,-12303.42922454,0.00034,2]
[312646563,1706128244898,-446.38231046,0.00034,4]
[312646564,1706128244908,-26095.73585062,0.00034,2]
[312646565,1706128244917,-153.84,0.00034005,2]
[312646566,1706128244926,-5000.0,0.0003409,2]
[312646567,1706128244935,-13998.29006135,0.00034116,2]
[312646568,1706128244944,-150.0,0.00034216,2]
[312646569,1706128244953,-1138.0,0.00034216,2]
[312646570,1706128244962,-865.0,0.00034216,2]
[312646571,1706128244971,-319.0,0.00034216,2]
[312646572,1706128244981,-19732.0,0.00034216,2]
[312646573,1706128244990,-2909.0,0.00034216,2]
[312646574,1706128244998,-2276.0,0.00034216,2]
[312646575,1706128245008,-1450.363,0.00034216,2]
[312646576,1706128245017,-837.0,0.00034216,2]
[312646577,1706128245026,-947.0,0.00034216,2]
[312646578,1706128245036,-700.788,0.00034216,2]
[312646579,1706128245045,-1031.0,0.00034216,2]
[312646580,1706128245055,-1233.0,0.00034216,2]
[312646581,1706128245064,-198.644,0.00034216,2]
[312646582,1706128245074,-1251.0,0.00034216,2]
[312646583,1706128245083,-155.0,0.00034247,2]
[312646584,1706128245093,-1296.30639016,0.00034385,7]
[312646585,1706128245102,-153.84429425,0.00034601,2]
[312646586,1706128245111,-153.84,0.00034649,2]
[312646587,1706128245121,-8970.50905993,0.000349,4]
[312646588,1706128245130,-4908.82337893,0.000349,2]
[312646589,1706128245142,-4908.82337882,0.000349,2]
[312646590,1706128245151,-4908.82337882,0.000349,2]
[312646591,1706128245160,-4908.82337882,0.000349,2]
[312646592,1706128245170,-4908.82337882,0.000349,2]
[312646593,1706128245181,-4908.82337882,0.000349,2]
[312646594,1706128245191,-4908.82337882,0.000349,2]
[312646595,1706128245200,-4908.82337882,0.000349,2]
[312646596,1706128245209,-289.2366302,0.0003499,2]
[312646597,1706128245219,-301.30245214,0.00035,2]
[312646598,1706128245228,-155.0,0.00035,2]
[312646599,1706128245237,-3837.59729699,0.00035,2]
[312646600,1706128245246,-933.06595187,0.00035,2]
[312646601,1706128245255,-448.71557993,0.00035,4]
[312646602,1706128245265,-1104.38138923,0.00035,14]
[312646603,1706128245275,-371.89017774,0.00035,2]
[312646604,1706128245285,-862.69212765,0.00035,2]
[312646605,1706128245295,-69869.40212613,0.00035,2]
[312646606,1706128245305,-700.0,0.00035,3]
[312646607,1706128245314,-150.0,0.00035116,2]
[312646608,1706128245326,-150.0,0.00035116,2]